[Event "Polonia Wroclaw Masters Cup-IM"]
[Site "Wroclaw"]
[Date "2019.05.03"]
[Round "7.4"]
[White "Praczukowski, Stanislaw"]
[Black "Czopor, Maciej"]
[Result "0-1"]
[ECO "A50"]
[WhiteElo "2190"]
[BlackElo "2229"]
[Annotator "NA"]
[PlyCount "76"]
[EventDate "2019.04.28"]
[EventType "tourn"]
[EventCountry "POL"]
[SourceTitle "playchess.com"]
[Source "ChessBase"]
[SourceQuality "1"]
[TimeControl "40/5400+30:900+30"]

1. d4 {[%emt 0:00:00]} Nf6 {[%emt 0:00:00]} 2. c4 {[%emt 0:00:00]} b6 {[%emt 0:00:00]} 3. f3 {[%emt 0:00:43]} e6 {[%emt 0:00:25]} 4. e4 {[%emt 0:01:19]} Bb4+ {[%emt 0:00:09]} 5. Nc3 {[%emt 0:01:34]} c5 {[%emt 0:00:37]} 6. d5 {[%emt 0:01:54]} O-O {[%emt 0:00:35]} 7. Bd3 {[%emt 0:01:01]} b5 {[%emt 0:16:24]} 8. Nge2 {[%emt 0:11:19]} exd5 {[%emt 0:27:17]} 9. exd5 {[%emt 0:02:57]} bxc4 {[%emt 0:00:49]} 10. Bxc4 {[%emt 0:00:53]} d6 {[%emt 0:00:12]} 11. O-O {[%emt 0:01:13]} Nbd7 {[%emt 0:01:35]} 12. Bf4 {[%emt 0:15:05]} Nb6 {[%emt 0:03:20]} 13. Bb5 {[%emt 0:07:04]} Bb7 {[%emt 0:02:00]} 14. Bc6 {[%emt 0:00:29]} Bxc6 {[%emt 0:06:27]} 15. dxc6 {[%emt 0:00:21]} c4 {[%emt 0:06:10]} 16. a4 {[%emt 0:05:52]} a5 {[%emt 0:03:24]} 17. Bg5 {[%emt 0:06:06]} d5 {[%emt 0:04:06]} 18. Qd4 {[%emt 0:03:21]} Qd6 {[%emt 0:01:47]} 19. Be3 {[%emt 0:06:35]} Rab8 {[%emt 0:03:58]} 20. Kh1 {[%emt 0:02:44]} Qxc6 {[%emt 0:00:18]} 21. Rfd1 {[%emt 0:00:24]} Rfe8 {[%emt 0:01:58]} 22. Bg5 {[%emt 0:00:56]} Nfd7 {[%emt 0:03:05]} 23. Ng3 {[%emt 0:07:41]} Nc5 {[%emt 0:02:12]} 24. Nf5 {[%emt 0:01:43]} Ne6 {[%emt 0:02:23]} 25. Qg4 {[%emt 0:00:19]} Nxg5 {[%emt 0:02:07]} 26. Qxg5 {[%emt 0:00:07]} Qg6 {[%emt 0:00:28]} 27. Qf4 {[%emt 0:00:10]} Qf6 {[%emt 0:03:03]} 28. Nxd5 {[%emt 0:02:31]} Nxd5 {[%emt 0:00:46]} 29. Rxd5 {[%emt 0:00:01]} Qxb2 {[%emt 0:00:44]} 30. Rad1 {[%emt 0:00:31]} Qe2 {[%emt 0:01:19]} 31. h3 {[%emt 0:09:19]} Bf8 {[%emt 0:00:07]} 32. Rd7 {[%emt 0:00:53]} Qe6 {[%emt 0:01:28]} 33. Rc7 {[%emt 0:04:23]} Rbc8 {[%emt 0:02:10]} 34. Nd4 {[%emt 0:01:48]} Qd5 {[%emt 0:00:22]} 35. Rxc8 {[%emt 0:00:43]} Rxc8 {[%emt 0:00:01]} 36. Re1 {[%emt 0:00:44]} c3 {[%emt 0:00:49]} 37. Qg4 {[%emt 0:00:19]} Rc4 {[%emt 0:00:56]} 38. Re4 {[%emt 0:01:39]} c2 {[%emt 0:00:24]} 0-1

[Event "Polonia Wroclaw Masters Cup-IM"]
[Site "Wroclaw"]
[Date "2019.05.03"]
[Round "7.5"]
[White "Odnorozhenko, Evgenyi"]
[Black "Martynyuk, Elizaveta"]
[Result "1-0"]
[ECO "B30"]
[WhiteElo "2275"]
[BlackElo "2141"]
[Annotator "NA"]
[PlyCount "145"]
[EventDate "2019.04.28"]
[EventType "tourn"]
[EventCountry "POL"]
[SourceTitle "playchess.com"]
[Source "ChessBase"]
[SourceQuality "1"]
[TimeControl "40/5400+30:900+30"]

1. e4 {[%emt 0:01:36]} c5 {[%emt 0:01:25]} 2. Nf3 {[%emt 0:00:18]} Nc6 {[%emt 0:00:05]} 3. Bb5 {[%emt 0:00:09]} d6 {[%emt 0:00:06]} 4. O-O {[%emt 0:01:48]} Bd7 {[%emt 0:01:11]} 5. Re1 {[%emt 0:00:08]} Nf6 {[%emt 0:00:08]} 6. c3 {[%emt 0:00:07]} a6 {[%emt 0:00:04]} 7. Bf1 {[%emt 0:01:23]} Bg4 {[%emt 0:00:25]} 8. d4 {[%emt 0:01:21]} cxd4 {[%emt 0:00:10]} 9. cxd4 {[%emt 0:00:05]} Bxf3 {[%emt 0:00:06] B51: Sicilian: Moscow Variation (3 Bb5+) without 3...Bd7} 10. gxf3 {[%emt 0:00:08]} e5 {[%emt 0:00:13]} 11. d5 {[%emt 0:00:05]} Nd4 {[%emt 0:00:27]} 12. Be3 {[%emt 0:00:18]} Be7 {[%emt 0:02:31]} 13. Bxd4 {[%emt 0:00:16]} (13. Nd2 O-O 14. f4 Nd7 15. Bxd4 exd4 16. Nf3 {½-½ (141) Abdusattorov,N (2546)-Matlakov,M (2700) St Petersburg 2018}) 13... exd4 {[%emt 0:00:07]} 14. Qxd4 {[%emt 0:00:04]} O-O {[%emt 0:00:16]} 15. Nc3 $146 {[%emt 0:00:04]} ({Predecessor:} 15. f4 Qd7 16. Qe3 Ng4 17. Qg3 {1-0 (41) Tabatabaei,M (2298)-Bogner,S (2587) Dubai 2014}) 15... Qd7 {[%emt 0:05:38]} 16. Kh1 {[%emt 0:04:52]} Rae8 {[%emt 0:01:58]} 17. Rad1 {[%emt 0:05:35]} h6 {[%emt 0:03:56]} 18. Qa4 {[%emt 0:02:34]} Qd8 {[%emt 0:03:39]} 19. Qb4 {[%emt 0:01:20]} Nh5 {[%emt 0:07:40]} 20. e5 {[%emt 0:08:29]} dxe5 {[%emt 0:00:17]} 21. d6 Bg5 {[%emt 0:01:11]} 22. d7 {[%emt 0:01:23]} Re6 {[%emt 0:00:49]} 23. Ne4 {[%emt 0:22:55]} Rb6 {[%emt 0:04:41]} 24. Qc5 {[%emt 0:05:56]} Bf4 {[%emt 0:01:15]} 25. Ng3 {[%emt 0:00:31]} Nf6 {[%emt 0:04:13]} 26. b3 {[%emt 0:01:54]} Rc6 {[%emt 0:04:50]} 27. Qb4 {[%emt 0:00:21]} Nxd7 {[%emt 0:15:11]} 28. Bh3 {[%emt 0:07:30]} Qb6 {[%emt 0:01:54]} 29. Qa3 {[%emt 0:09:05]} Qxf2 {[%emt 0:00:59]} 30. Rf1 {[%emt 0:00:13]} Qe3 {[%emt 0:05:08]} 31. Bxd7 {[%emt 0:03:36]} Rg6 {[%emt 0:04:02]} 32. Bf5 {[%emt 0:03:27]} Bxg3 {[%emt 0:03:11]} 33. Bxg6 {[%emt 0:00:55]} fxg6 {[%emt 0:01:26]} 34. hxg3 {[%emt 0:03:10]} Rxf3 {[%emt 0:00:05]} 35. Qc1 {[%emt 0:02:16]} Rxf1+ {[%emt 0:02:23]} 36. Rxf1 {[%emt 0:00:10]} Qxg3 {[%emt 0:00:05]} 37. Qc4+ {[%emt 0:08:35]} Kh7 38. Rf8 {[%emt 0:03:26]} h5 {[%emt 0:02:42]} 39. Qg8+ {[%emt 0:00:08]} Kh6 {[%emt 0:00:08]} 40. Qc4 {[%emt 0:00:00]} Kh7 {[%emt 0:00:00]} 41. Qe4 {[%emt 0:05:56]} Qc3 {[%emt 0:06:24]} 42. Rf2 {[%emt 0:00:49]} Qc1+ {[%emt 0:00:59]} 43. Kh2 {[%emt 0:00:26]} Qg5 {[%emt 0:00:36]} 44. Re2 {[%emt 0:01:52]} Qf4+ {[%emt 0:08:42]} 45. Kg2 {[%emt 0:02:02]} Qg5+ {[%emt 0:00:16]} 46. Kf2 {[%emt 0:04:31]} Qf4+ $2 {[%emt 0:01:18]} (46... a5 47. Qxe5 Qh4+ 48. Qg3 Qd4+ 49. Kg2 b6) 47. Qxf4 {[%emt 0:02:05]} exf4 {[%emt 0:00:03]} 48. Kf3 {[%emt 0:00:11]} g5 {[%emt 0:00:15]} 49. Re5 {[%emt 0:00:25]} Kg6 {[%emt 0:00:09]} 50. a4 {[%emt 0:00:29]} Kf6 {[%emt 0:00:15]} 51. Rc5 {[%emt 0:00:06]} b6 {[%emt 0:00:29]} 52. Rd5 {[%emt 0:00:07]} Kg6 {[%emt 0:00:50]} 53. b4 {[%emt 0:00:14]} Kf6 {[%emt 0:00:04]} 54. a5 {[%emt 0:00:17]} b5 {[%emt 0:00:19]} 55. Ke4 {[%emt 0:00:16]} h4 {[%emt 0:00:15]} 56. Kf3 {[%emt 0:00:05]} h3 {[%emt 0:00:07]} 57. Kg4 {[%emt 0:00:26]} h2 {[%emt 0:00:52]} 58. Rd1 {[%emt 0:00:03]} Ke5 {[%emt 0:00:04]} 59. Rh1 {[%emt 0:00:05]} Kd4 {[%emt 0:00:09]} 60. Rxh2 {[%emt 0:00:17]} Kc3 {[%emt 0:00:08]} 61. Kxg5 {[%emt 0:00:18]} Kxb4 {[%emt 0:00:14]} 62. Kxf4 {[%emt 0:00:05]} Kxa5 {[%emt 0:02:43]} 63. Ke3 {[%emt 0:00:27]} Kb4 {[%emt 0:01:47]} 64. Kd2 {[%emt 0:00:05]} Kb3 {[%emt 0:00:13]} 65. Kc1 {[%emt 0:00:05]} b4 {[%emt 0:00:16]} 66. Kb1 {[%emt 0:00:17]} a5 {[%emt 0:00:06]} 67. Rh3+ {[%emt 0:00:11]} Kc4 {[%emt 0:00:07]} 68. Kb2 {[%emt 0:00:10]} a4 {[%emt 0:00:08]} 69. Rh4+ {[%emt 0:00:22]} Kc5 {[%emt 0:00:32]} 70. Rg4 {[%emt 0:00:05]} Kd5 {[%emt 0:00:23]} 71. Rxg7 {[%emt 0:00:07]} Kc4 {[%emt 0:00:18]} 72. Rc7+ {[%emt 0:00:06]} Kb5 {[%emt 0:00:14]} 73. Ra7 1-0

[Event "Polonia Wroclaw Masters Cup-IM"]
[Site "Wroclaw"]
[Date "2019.05.04"]
[Round "8.1"]
[White "Krzywda, Andrzej"]
[Black "Martynyuk, Elizaveta"]
[Result "0-1"]
[ECO "D10"]
[WhiteElo "2199"]
[BlackElo "2141"]
[Annotator "NA"]
[PlyCount "82"]
[EventDate "2019.04.28"]
[EventType "tourn"]
[EventCountry "POL"]
[SourceTitle "playchess.com"]
[Source "ChessBase"]
[SourceQuality "1"]
[TimeControl "40/5400+30:900+30"]

1. d4 {[%emt 0:00:00]} d5 {[%emt 0:00:00]} 2. c4 {[%emt 0:00:00]} c6 {[%emt 0:00:00]} 3. cxd5 {[%emt 0:00:00]} cxd5 {[%emt 0:00:00]} 4. Bf4 {[%emt 0:00:00]} Nf6 {[%emt 0:00:04]} 5. e3 {[%emt 0:00:00]} Nc6 {[%emt 0:00:04]} 6. Nc3 {[%emt 0:00:07]} a6 {[%emt 0:00:05]} 7. Be2 {[%emt 0:02:12]} h6 {[%emt 0:00:31]} 8. Bd3 {[%emt 0:05:56]} Bg4 {[%emt 0:00:41]} 9. f3 {[%emt 0:00:20]} Bd7 {[%emt 0:00:06]} 10. Nge2 {[%emt 0:01:08]} e6 {[%emt 0:00:10]} 11. O-O {[%emt 0:07:20]} Nh5 {[%emt 0:01:39]} 12. Be5 {[%emt 0:03:35]} Nxe5 {[%emt 0:00:17]} 13. dxe5 {[%emt 0:00:02]} Bc5 {[%emt 0:00:12]} 14. Kh1 {[%emt 0:07:45]} Bxe3 {[%emt 0:09:45]} 15. f4 {[%emt 0:00:30]} d4 {[%emt 0:01:36]} 16. Ne4 {[%emt 0:01:50]} O-O {[%emt 0:00:29]} 17. N4g3 {[%emt 0:13:41]} Nxg3+ {[%emt 0:01:42]} 18. Nxg3 {[%emt 0:00:19]} Qh4 {[%emt 0:08:36]} 19. Qf3 {[%emt 0:02:52]} Bc6 {[%emt 0:01:25]} 20. Be4 {[%emt 0:01:12]} Bb5 {[%emt 0:01:07]} 21. Nh5 {[%emt 0:16:38]} Bxf1 {[%emt 0:00:54]} 22. Rxf1 {[%emt 0:04:42]} Rac8 {[%emt 0:05:00]} 23. Bd3 {[%emt 0:04:25]} Rc6 {[%emt 0:01:32]} 24. g3 Qd8 {[%emt 0:10:24]} 25. Be4 {[%emt 0:05:43]} Rc7 {[%emt 0:04:03]} 26. Rd1 {[%emt 0:12:53]} Kh8 {[%emt 0:02:33]} 27. Qg4 {[%emt 0:04:18]} Rg8 {[%emt 0:00:18]} 28. h4 {[%emt 0:00:54]} Qc8 {[%emt 0:01:52]} 29. Kg2 {[%emt 0:02:50]} Rc1 {[%emt 0:00:41]} 30. Kh3 {[%emt 0:02:23]} Rxd1 {[%emt 0:00:34]} 31. Qxd1 {[%emt 0:00:02]} Qc1 {[%emt 0:00:07]} 32. Qb3 {[%emt 0:01:19]} Qf1+ {[%emt 0:00:12]} 33. Bg2 {[%emt 0:00:36]} Qe2 {[%emt 0:00:06]} 34. g4 {[%emt 0:00:33]} Bg1 {[%emt 0:00:51]} 35. Qxb7 {[%emt 0:00:23]} Qe3+ {[%emt 0:00:07]} 36. Qf3 {[%emt 0:00:49]} d3 {[%emt 0:00:13]} 37. Qxe3 {[%emt 0:00:37]} Bxe3 {[%emt 0:00:12]} 38. Ng3 {[%emt 0:00:22]} d2 {[%emt 0:00:21]} 39. Bf3 {[%emt 0:00:12]} Bxf4 {[%emt 0:00:23]} 40. Ne4 {[%emt 0:00:00]} Rd8 {[%emt 0:00:00]} 41. Nd6 {[%emt 0:00:16]} Kg8 {[%emt 0:00:19]} 0-1

[Event "Polonia Wroclaw Masters Cup-IM"]
[Site "Wroclaw"]
[Date "2019.05.04"]
[Round "8.2"]
[White "Czopor, Maciej"]
[Black "Odnorozhenko, Evgenyi"]
[Result "*"]
[ECO "C75"]
[WhiteElo "2219"]
[BlackElo "2277"]
[Annotator "NA RC"]
[PlyCount "115"]
[EventDate "2019.04.28"]
[EventType "tourn"]
[EventCountry "POL"]
[SourceTitle "playchess.com"]
[Source "ChessBase"]
[SourceQuality "1"]
[TimeControl "40/5400+30:900+30"]

1. e4 {[%emt 0:00:00]} e5 {[%emt 0:07:00]} 2. Nf3 {[%emt 0:00:00]} Nc6 {[%emt 0:00:06]} 3. Bb5 {[%emt 0:00:00]} a6 {[%emt 0:00:05]} 4. Ba4 {[%emt 0:00:01]} d6 {[%emt 0:00:08]} 5. c3 {[%emt 0:06:03]} Bd7 {[%emt 0:00:35]} 6. O-O {[%emt 0:01:13]} Nge7 {[%emt 0:00:17]} 7. d4 {[%emt 0:00:40]} Ng6 {[%emt 0:00:21]} 8. Nbd2 {[%emt 0:08:49]} Be7 {[%emt 0:00:14]} 9. Re1 {[%emt 0:00:22]} O-O {[%emt 0:00:06]} 10. Nf1 {[%emt 0:00:45]} Bg4 {[%emt 0:00:10]} 11. Bxc6 {[%emt 0:05:27]} Nh4 {[%emt 0:00:05]} 12. N1d2 {[%emt 0:24:21]} bxc6 {[%emt 0:00:23]} 13. h3 {[%emt 0:00:23]} Nxf3+ {[%emt 0:00:06]} 14. Nxf3 {[%emt 0:00:07]} Bxf3 {[%emt 0:00:05]} 15. Qxf3 {[%emt 0:00:12]} Bf6 {[%emt 0:00:05]} 16. Qd3 {[%emt 0:02:30]} Qb8 {[%emt 0:00:11]} 17. dxe5 {[%emt 0:03:21]} Bxe5 {[%emt 0:00:13]} 18. f4 {[%emt 0:01:24]} Bf6 {[%emt 0:00:11]} 19. Re2 {[%emt 0:01:16]} Re8 {[%emt 0:02:56]} 20. Be3 {[%emt 0:04:59]} Qb5 {[%emt 0:06:44]} 21. c4 {[%emt 0:00:32]} Qh5 {[%emt 0:00:08]} 22. Bf2 {[%emt 0:02:58]} Qa5 {[%emt 0:10:31]} 23. Be1 {[%emt 0:11:47]} Qb6+ {[%emt 0:00:33]} 24. Kh2 {[%emt 0:02:01]} Bd4 {[%emt 0:01:38]} 25. Bc3 {[%emt 0:01:50]} Bxc3 {[%emt 0:00:36]} 26. Qxc3 {[%emt 0:00:01]} c5 {[%emt 0:03:46]} 27. Rae1 {[%emt 0:02:04]} Re6 {[%emt 0:00:24]} 28. Qd2 {[%emt 0:04:28]} Rae8 {[%emt 0:01:45]} 29. f5 {[%emt 0:01:24]} Re5 {[%emt 0:00:10]} 30. f6 {[%emt 0:00:16]} gxf6 {[%emt 0:04:33]} 31. Qf4 {[%emt 0:05:45]} R8e6 {[%emt 0:00:21]} 32. Re3 {[%emt 0:01:11]} Rg5 {[%emt 0:00:34]} 33. h4 {[%emt 0:02:05]} Rg6 {[%emt 0:00:14]} 34. Rb3 {[%emt 0:00:27]} Qc6 {[%emt 0:02:52]} 35. Ree3 {[%emt 0:00:43]} h5 {[%emt 0:05:28]} 36. Qf5 {[%emt 0:01:37]} Kg7 {[%emt 0:04:55]} 37. Rb8 {[%emt 0:00:35]} Re8 {[%emt 0:00:52]} 38. Rxe8 {[%emt 0:01:07]} Qxe8 {[%emt 0:00:13]} 39. Qxh5 {[%emt 0:00:13]} Qe6 {[%emt 0:02:34]} 40. b3 {[%emt 0:00:00]} Rg4 {[%emt 0:00:00]} 41. Qxg4+ {[%emt 0:04:23]} Qxg4 {[%emt 0:02:53]} 42. Rg3 {[%emt 0:00:05]} Qg6 {[%emt 0:00:04]} 43. h5 {[%emt 0:01:03]} Qg5 {[%emt 0:00:25]} 44. Rxg5+ {[%emt 0:00:13]} fxg5 {[%emt 0:00:02]} 45. g4 {[%emt 0:01:10]} a5 {[%emt 0:03:48]} 46. Kg3 {[%emt 0:00:17]} Kf6 {[%emt 0:00:06]} 47. Kf3 {[%emt 0:00:40]} Ke5 {[%emt 0:00:36]} 48. Ke3 {[%emt 0:02:37]} Kf6 {[%emt 0:00:15]} 49. Kd3 {[%emt 0:00:40]} Ke5 {[%emt 0:00:18]} 50. Kc3 {[%emt 0:00:32]} Kf6 {[%emt 0:23:28]} 51. a3 {[%emt 0:00:38]} Ke5 {[%emt 0:00:09]} 52. b4 {[%emt 0:00:38]} a4 {[%emt 0:00:04]} 53. bxc5 {[%emt 0:01:42]} dxc5 {[%emt 0:00:14]} 54. Kd3 {[%emt 0:00:25]} Ke6 {[%emt 0:00:24]} 55. h6 {[%emt 0:01:01]} Kf6 {[%emt 0:00:07]} 56. e5+ {[%emt 0:00:07]} Kg6 {[%emt 0:00:06]} 57. Ke4 {[%emt 0:00:10]} c6 {[%emt 0:00:05]} 58. h7 {[%emt 0:00:58]} *

[Event "Polonia Wroclaw Masters Cup-IM"]
[Site "Wroclaw"]
[Date "2019.05.04"]
[Round "8.3"]
[White "Frolov, Artur"]
[Black "Praczukowski, Stanislaw"]
[Result "1-0"]
[ECO "B19"]
[WhiteElo "2447"]
[BlackElo "2149"]
[Annotator "RC"]
[PlyCount "116"]
[EventDate "2019.04.28"]
[EventType "tourn"]
[EventCountry "POL"]
[SourceTitle "playchess.com"]
[Source "ChessBase"]
[SourceQuality "1"]
[TimeControl "40/5400+30:900+30"]

1. e4 c6 2. d4 d5 3. Nd2 dxe4 4. Nxe4 Bf5 5. Ng3 Bg6 6. Nf3 Nd7 7. h4 h6 8. h5 Bh7 9. Bd3 Bxd3 10. Qxd3 e6 11. Bf4 Qa5+ 12. Bd2 Bb4 13. a3 Bxd2+ 14. Qxd2 Qxd2+ 15. Kxd2 Ngf6 16. Rad1 Ke7 17. c4 Rhd8 18. Kc2 {[%emt 0:16:14]} c5 {[%emt 0:17:41]} 19. dxc5 {[%emt 0:01:34]} Nxc5 {[%emt 0:00:14]} 20. Nd4 {[%emt 0:30:18]} Rac8 {[%emt 0:05:22]} 21. Rh4 {[%emt 0:12:28]} a5 {[%emt 0:23:08]} 22. b4 {[%emt 0:06:03]} axb4 {[%emt 0:02:04]} 23. axb4 {[%emt 0:00:04]} Ncd7 {[%emt 0:11:37]} 24. Nf3 {[%emt 0:15:43]} Ra8 {[%emt 0:18:10]} 25. Rd2 {[%emt 0:00:18]} Ra1 {[%emt 0:02:32]} 26. Ne2 {[%emt 0:06:29]} Rda8 {[%emt 0:02:28]} 27. Nc3 {[%emt 0:00:08]} Rf1 {[%emt 0:01:16]} 28. Nd4 {[%emt 0:07:00]} Raa1 {[%emt 0:02:56]} 29. f3 {[%emt 0:01:17]} Ne5 {[%emt 0:03:02]} 30. Re2 {[%emt 0:01:49]} Nc6 {[%emt 0:02:18]} 31. Nxc6+ {[%emt 0:00:31]} bxc6 {[%emt 0:00:01]} 32. b5 {[%emt 0:00:19]} cxb5 {[%emt 0:02:37]} 33. cxb5 {[%emt 0:00:07]} Rh1 {[%emt 0:01:41]} 34. Rc4 {[%emt 0:02:31]} Ra7 {[%emt 0:01:52]} 35. g4 {[%emt 0:01:18]} Rf1 {[%emt 0:01:02]} 36. Re3 {[%emt 0:00:34]} Rb7 {[%emt 0:02:51]} 37. Rc6 {[%emt 0:00:23]} Nd7 {[%emt 0:02:07]} 38. Kd3 {[%emt 0:01:17]} Ra1 {[%emt 0:01:04]} 39. Kc4 {[%emt 0:00:34]} Kd8 {[%emt 0:02:00]} 40. Kb4 {[%emt 0:00:00]} Rc7 {[%emt 0:00:00]} 41. Ra6 {[%emt 0:11:07]} Ra7 {[%emt 0:03:37]} 42. Rxa7 {[%emt 0:01:10]} Rxa7 {[%emt 0:00:51]} 43. Ne4 {[%emt 0:01:54]} Ra1 {[%emt 0:00:56]} 44. Ra3 {[%emt 0:02:12]} Rb1+ {[%emt 0:02:43]} 45. Ka5 {[%emt 0:00:10]} Ne5 {[%emt 0:04:47]} 46. Ka6 {[%emt 0:00:12]} Kc7 {[%emt 0:00:43]} 47. Rc3+ {[%emt 0:01:27]} Kb8 {[%emt 0:00:30]} 48. Nc5 {[%emt 0:00:07]} Rb4 {[%emt 0:02:04]} 49. Rc1 {[%emt 0:02:52]} f6 {[%emt 0:01:07]} 50. Rd1 {[%emt 0:00:21]} Kc8 {[%emt 0:01:03]} 51. b6 {[%emt 0:01:05]} Nc6 {[%emt 0:01:46]} 52. b7+ {[%emt 0:00:07]} Kc7 {[%emt 0:00:06]} 53. Rd7+ {[%emt 0:00:04]} Kb8 {[%emt 0:00:11]} 54. Rxg7 {[%emt 0:00:17]} Rb1 {[%emt 0:00:25]} 55. Nd7+ {[%emt 0:01:14]} Kc7 {[%emt 0:00:02]} 56. Ne5+ {[%emt 0:00:03]} Kd6 {[%emt 0:00:45]} 57. Nxc6 {[%emt 0:00:03]} Kxc6 {[%emt 0:00:14]} 58. Ka7 {[%emt 0:00:00]} Kd5 1-0

[Event "Polonia Wroclaw Masters Cup-IM"]
[Site "Wroclaw"]
[Date "2019.05.04"]
[Round "8.4"]
[White "Stachowiak, Kamil"]
[Black "Fiedorek, Michal"]
[Result "1/2-1/2"]
[ECO "A20"]
[WhiteElo "2438"]
[BlackElo "2088"]
[Annotator "NA"]
[PlyCount "55"]
[EventDate "2019.04.28"]
[EventType "tourn"]
[EventCountry "POL"]
[SourceTitle "playchess.com"]
[Source "ChessBase"]
[SourceQuality "1"]
[TimeControl "40/5400+30:900+30"]

1. c4 {[%emt 0:00:00]} e5 {[%emt 0:00:00]} 2. g3 {[%emt 0:00:06]} Nf6 {[%emt 0:00:36]} 3. Bg2 {[%emt 0:00:10]} d5 {[%emt 0:00:41]} 4. cxd5 {[%emt 0:00:19]} Nxd5 {[%emt 0:00:10]} 5. Nc3 {[%emt 0:00:10]} Nb6 {[%emt 0:00:34]} 6. Nf3 {[%emt 0:00:18]} Nc6 {[%emt 0:00:24]} 7. O-O {[%emt 0:00:16]} Be7 {[%emt 0:00:22]} 8. d3 {[%emt 0:00:25]} O-O {[%emt 0:00:42]} 9. a3 {[%emt 0:01:25]} Re8 {[%emt 0:01:44]} 10. Bd2 {[%emt 0:03:05]} Bf8 {[%emt 0:08:38]} 11. Rc1 {[%emt 0:02:12]} h6 {[%emt 0:07:05]} 12. Ne4 {[%emt 0:12:10]} Nd4 {[%emt 0:13:30]} 13. Nc5 {[%emt 0:15:14]} c6 {[%emt 0:05:35]} 14. a4 {[%emt 0:06:37]} Nd7 {[%emt 0:08:24]} 15. Nxd7 {[%emt 0:09:36]} Bxd7 {[%emt 0:01:13]} 16. Nxd4 {[%emt 0:00:26]} exd4 {[%emt 0:00:08]} 17. Bf3 {[%emt 0:02:42]} a5 {[%emt 0:14:22]} 18. Qb3 {[%emt 0:10:59]} Ra7 {[%emt 0:02:20]} 19. e3 {[%emt 0:07:17]} Be6 {[%emt 0:04:25]} 20. Qc2 {[%emt 0:00:07]} dxe3 {[%emt 0:03:10]} 21. Bxe3 {[%emt 0:05:04]} Ra8 {[%emt 0:00:51]} 22. Be4 {[%emt 0:01:45]} Bh3 {[%emt 0:08:42]} 23. Rfd1 {[%emt 0:04:30]} Bg4 {[%emt 0:00:44]} 24. Re1 {[%emt 0:04:00]} Bb4 {[%emt 0:00:43]} 25. Bd2 {[%emt 0:00:09]} Bxd2 {[%emt 0:02:25]} 26. Qxd2 {[%emt 0:00:04]} Qb6 {[%emt 0:02:35]} 27. Re3 {[%emt 0:02:44]} Qb4 {[%emt 0:05:07]} 28. Qe1 {[%emt 0:07:56]} 1/2-1/2

[Event "Polonia Wroclaw Masters Cup-IM"]
[Site "Wroclaw"]
[Date "2019.05.04"]
[Round "8.5"]
[White "Baum, Jonasz"]
[Black "Mahitosh Dey"]
[Result "1-0"]
[ECO "E10"]
[WhiteElo "2261"]
[BlackElo "2126"]
[Annotator "NA"]
[PlyCount "103"]
[EventDate "2019.04.28"]
[EventType "tourn"]
[EventCountry "POL"]
[SourceTitle "playchess.com"]
[Source "ChessBase"]
[SourceQuality "1"]
[TimeControl "40/5400+30:900+30"]

1. d4 {[%emt 0:00:00]} Nf6 {[%emt 0:00:00]} 2. c4 {[%emt 0:00:00]} e6 {[%emt 0:00:00]} 3. Nf3 {[%emt 0:00:00]} d5 {[%emt 0:00:00]} 4. g3 {[%emt 0:00:00]} Bb4+ {[%emt 0:00:00]} 5. Nbd2 {[%emt 0:00:00]} O-O {[%emt 0:00:06]} 6. Bg2 {[%emt 0:00:04]} Ne4 {[%emt 0:00:15]} 7. O-O {[%emt 0:00:11]} f5 {[%emt 0:00:03]} 8. Qc2 {[%emt 0:00:30]} c6 {[%emt 0:00:13]} 9. Ne5 {[%emt 0:00:28]} Nd7 {[%emt 0:00:16]} 10. Ndf3 {[%emt 0:00:42]} Bd6 {[%emt 0:01:39]} 11. Bf4 {[%emt 0:01:07]} Bxe5 {[%emt 0:00:20]} 12. Nxe5 {[%emt 0:00:57]} g5 {[%emt 0:00:10]} 13. Nxd7 {[%emt 0:01:14]} Bxd7 {[%emt 0:00:03]} 14. Be5 {[%emt 0:00:35]} Be8 {[%emt 0:00:05]} 15. cxd5 {[%emt 0:07:35]} exd5 {[%emt 0:00:09]} 16. Qc1 {[%emt 0:09:27]} h6 {[%emt 0:04:06]} 17. h4 {[%emt 0:05:38]} Rf7 {[%emt 0:04:04]} 18. f3 {[%emt 0:04:49]} Nd6 {[%emt 0:00:09]} 19. hxg5 {[%emt 0:02:34]} hxg5 {[%emt 0:00:05]} 20. Bxd6 {[%emt 0:04:17]} Qxd6 {[%emt 0:00:04]} 21. Qxg5+ {[%emt 0:00:06]} Rg7 {[%emt 0:00:05]} 22. Qf4 {[%emt 0:00:06]} Qxf4 {[%emt 0:00:08]} 23. gxf4 {[%emt 0:00:02]} Bd7 {[%emt 0:00:55]} 24. Kf2 {[%emt 0:00:46]} Re8 {[%emt 0:00:10]} 25. Rg1 {[%emt 0:11:09]} Rge7 {[%emt 0:00:05]} 26. Bf1+ {[%emt 0:00:35]} Kf7 {[%emt 0:00:05]} 27. Rc1 {[%emt 0:00:31]} Re3 {[%emt 0:01:04]} 28. Rc3 {[%emt 0:07:44]} Rxc3 {[%emt 0:00:10]} 29. bxc3 {[%emt 0:00:01]} c5 {[%emt 0:00:05]} 30. e3 {[%emt 0:04:12]} c4 {[%emt 0:00:04]} 31. Be2 {[%emt 0:03:04]} b5 {[%emt 0:00:03]} 32. Rh1 {[%emt 0:00:51]} Kg7 {[%emt 0:00:11]} 33. Rb1 {[%emt 0:05:38]} a5 {[%emt 0:01:47]} 34. a4 {[%emt 0:07:00]} Re6 {[%emt 0:00:05]} 35. axb5 {[%emt 0:00:34]} Rb6 {[%emt 0:00:03]} 36. e4 {[%emt 0:03:12]} Rxb5 {[%emt 0:00:10]} 37. Ra1 {[%emt 0:03:44]} fxe4 {[%emt 0:05:05]} 38. fxe4 {[%emt 0:00:12]} Rb2 {[%emt 0:00:07]} 39. Ke3 {[%emt 0:02:51]} a4 {[%emt 0:00:41]} 40. Bd1 {[%emt 0:00:00]} Rb3 {[%emt 0:03:21]} 41. Bxb3 {[%emt 0:18:35]} cxb3 {[%emt 0:00:00]} 42. Kd2 {[%emt 0:01:25]} dxe4 {[%emt 0:00:00]} 43. c4 {[%emt 0:01:16]} Kf6 {[%emt 0:00:22]} 44. Kc3 {[%emt 0:00:10]} Kf5 {[%emt 0:00:11]} 45. d5 {[%emt 0:06:53]} Kxf4 {[%emt 0:01:25]} 46. c5 {[%emt 0:00:04]} Ke5 {[%emt 0:00:04]} 47. c6 {[%emt 0:01:57]} Bf5 {[%emt 0:02:12]} 48. Rxa4 {[%emt 0:00:48]} e3 {[%emt 0:00:04]} 49. Ra8 {[%emt 0:05:11]} Kxd5 {[%emt 0:05:40]} 50. Ra5+ {[%emt 0:00:10]} Ke4 {[%emt 0:00:03]} 51. Rxf5 {[%emt 0:00:18]} e2 {[%emt 0:00:14]} 52. Kd2 {[%emt 0:00:06]} 1-0